Workbook

Sheet Calcul heures travail
C1: Calcul des heures de travail
A5: Nom Entreprise | B5: Nom Entreprise | E5: EMPLOYE: | F5: Prénom NOM
A7: Année | C7: Mois | F7: Heure dues par semaine | I7: Report d'heures:
C8: Numéro mois | D8: =IF($D$7="","",MONTH($D$7&"1")) ->  | F8: Nombre de jours travaillés par semaine | I8: Dues par employé | J8: =$I$51 -> 
C9: Nombre jours mois | D9: =IF(OR($B$7="",$D$7="",$D$8=""),"",DAY(DATE($B$7,$D$8+1,1)-1)) ->  | F9: Heures dues par mois | G9: =IF(OR($G$7="",$D$10=""),"Compléter heures dues / semaine et Année",($G$7*52)/12) -> Compléter heures dues / semaine et Année | I9: Dues par entreprise | J9: =$I$52 -> 0
C10: Nombre de jours ouvrés | D10: =IF(OR($B$7="",$D$7="",$D$8=""),"",NETWORKDAYS(DATE($B$7,$D$8,1),DATE($B$7,$D$8,$D$9),Listes!$G$7:$G$1000)) ->  | F10: Heures dues par jour | G10: =IF(OR($G$9="",$G$9="Compléter heures dues / semaine et Année", $D$10=""),"",$G$9/$D$10) -> 
A12: Jour férié | C12: Week-end
E14: Matin | G14: Après-midi
A15: Semaine | B15: Jour | C15: Jour | D15: Mois | E15: Arrivée | F15: Départ | G15: Arrivée | H15: Départ | I15: Totaux journaliers | J15: Heures supplémentaires
A16: =IF(OR($B$7="",$D$7="",$D$8="",$C16=""),"",_xlfn.ISOWEEKNUM(DATE($B$7,$D$8,$C16))) ->  | B16: =IF(OR($B$7="",$D$7="",$D$8="",$C16=""),"",TEXT(DATE($B$7,$D$8,$C16),"dddd")) ->  | C16: =IF(OR($B$7="",$D$7="",$D$8=""),"",DAY(DATE($B$7,$D$8+1,1)-1)-DAY(DATE($B$7,$D$8+1,1)-1)+1) ->  | D16: =IF(OR($D$7="",$C16=""),"",$D$7) ->  | I16: =IF($G$10="","",IF(OR(ISTEXT($G16),ISTEXT($H16),ISTEXT($E16),ISTEXT($F16)),(((COUNTIF($E16:$H16,Listes!$I$7)+COUNTIF($E16:$H16,Listes!$I$9)+COUNTIF($E16:$H16,Listes!$I$12))*$G$10)/4))+IF(OR(ISTEXT($F16),ISTEXT($E16)),"0",($F16-$E16)*24)+IF(OR(ISTEXT($H16),ISTEXT($G16)),"0",($H16-$G16)*24)) ->  | J16: =_xlfn.IFS(OR(I16="",I16="Compléter G9"),"0,00",I16>=$G$10,I16-$G$10,I16<$G$10,"") -> 0,00
A17: =IF(OR($B$7="",$D$7="",$D$8="",$C17=""),"",_xlfn.ISOWEEKNUM(DATE($B$7,$D$8,$C17))) ->  | B17: =IF(OR($B$7="",$D$7="",$D$8="",$C17=""),"",TEXT(DATE($B$7,$D$8,$C17),"dddd")) ->  | C17: =_xlfn.IFS($C16="","",$C16<$D$9,$C16+1,$C16=$D$9,"") ->  | D17: =IF(OR($D$7="",$C17=""),"",$D$7) ->  | I17: =IF($G$10="","",IF(OR(ISTEXT($G17),ISTEXT($H17),ISTEXT($E17),ISTEXT($F17)),(((COUNTIF($E17:$H17,Listes!$I$7)+COUNTIF($E17:$H17,Listes!$I$9)+COUNTIF($E17:$H17,Listes!$I$12))*$G$10)/4))+IF(OR(ISTEXT($F17),ISTEXT($E17)),"0",($F17-$E17)*24)+IF(OR(ISTEXT($H17),ISTEXT($G17)),"0",($H17-$G17)*24)) ->  | J17: =_xlfn.IFS(OR(I17="",I17="Compléter G9"),"0,00",I17>=$G$10,I17-$G$10,I17<$G$10,"") -> 0,00
C18: =_xlfn.IFS($C17="","",$C17<$D$9,$C17+1,$C17=$D$9,"") ->  | I18: =IF($G$10="","",IF(OR(ISTEXT($G18),ISTEXT($H18),ISTEXT($E18),ISTEXT($F18)),(((COUNTIF($E18:$H18,Listes!$I$7)+COUNTIF($E18:$H18,Listes!$I$9)+COUNTIF($E18:$H18,Listes!$I$12))*$G$10)/4))+IF(OR(ISTEXT($F18),ISTEXT($E18)),"0",($F18-$E18)*24)+IF(OR(ISTEXT($H18),ISTEXT($G18)),"0",($H18-$G18)*24)) ->  | J18: =_xlfn.IFS(OR(I18="",I18="Compléter G9"),"0,00",I18>=$G$10,I18-$G$10,I18<$G$10,"") -> 0,00
C19: =_xlfn.IFS($C18="","",$C18<$D$9,$C18+1,$C18=$D$9,"") ->  | I19: =IF($G$10="","",IF(OR(ISTEXT($G19),ISTEXT($H19),ISTEXT($E19),ISTEXT($F19)),(((COUNTIF($E19:$H19,Listes!$I$7)+COUNTIF($E19:$H19,Listes!$I$9)+COUNTIF($E19:$H19,Listes!$I$12))*$G$10)/4))+IF(OR(ISTEXT($F19),ISTEXT($E19)),"0",($F19-$E19)*24)+IF(OR(ISTEXT($H19),ISTEXT($G19)),"0",($H19-$G19)*24)) ->  | J19: =_xlfn.IFS(OR(I19="",I19="Compléter G9"),"0,00",I19>=$G$10,I19-$G$10,I19<$G$10,"") -> 0,00
C20: =_xlfn.IFS($C19="","",$C19<$D$9,$C19+1,$C19=$D$9,"") ->  | I20: =IF($G$10="","",IF(OR(ISTEXT($G20),ISTEXT($H20),ISTEXT($E20),ISTEXT($F20)),(((COUNTIF($E20:$H20,Listes!$I$7)+COUNTIF($E20:$H20,Listes!$I$9)+COUNTIF($E20:$H20,Listes!$I$12))*$G$10)/4))+IF(OR(ISTEXT($F20),ISTEXT($E20)),"0",($F20-$E20)*24)+IF(OR(ISTEXT($H20),ISTEXT($G20)),"0",($H20-$G20)*24)) ->  | J20: =_xlfn.IFS(OR(I20="",I20="Compléter G9"),"0,00",I20>=$G$10,I20-$G$10,I20<$G$10,"") -> 0,00
C21: =_xlfn.IFS($C20="","",$C20<$D$9,$C20+1,$C20=$D$9,"") ->  | I21: =IF($G$10="","",IF(OR(ISTEXT($G21),ISTEXT($H21),ISTEXT($E21),ISTEXT($F21)),(((COUNTIF($E21:$H21,Listes!$I$7)+COUNTIF($E21:$H21,Listes!$I$9)+COUNTIF($E21:$H21,Listes!$I$12))*$G$10)/4))+IF(OR(ISTEXT($F21),ISTEXT($E21)),"0",($F21-$E21)*24)+IF(OR(ISTEXT($H21),ISTEXT($G21)),"0",($H21-$G21)*24)) ->  | J21: =_xlfn.IFS(OR(I21="",I21="Compléter G9"),"0,00",I21>=$G$10,I21-$G$10,I21<$G$10,"") -> 0,00
C22: =_xlfn.IFS($C21="","",$C21<$D$9,$C21+1,$C21=$D$9,"") ->  | I22: =IF($G$10="","",IF(OR(ISTEXT($G22),ISTEXT($H22),ISTEXT($E22),ISTEXT($F22)),(((COUNTIF($E22:$H22,Listes!$I$7)+COUNTIF($E22:$H22,Listes!$I$9)+COUNTIF($E22:$H22,Listes!$I$12))*$G$10)/4))+IF(OR(ISTEXT($F22),ISTEXT($E22)),"0",($F22-$E22)*24)+IF(OR(ISTEXT($H22),ISTEXT($G22)),"0",($H22-$G22)*24)) ->  | J22: =_xlfn.IFS(OR(I22="",I22="Compléter G9"),"0,00",I22>=$G$10,I22-$G$10,I22<$G$10,"") -> 0,00
C23: =_xlfn.IFS($C22="","",$C22<$D$9,$C22+1,$C22=$D$9,"") ->  | I23: =IF($G$10="","",IF(OR(ISTEXT($G23),ISTEXT($H23),ISTEXT($E23),ISTEXT($F23)),(((COUNTIF($E23:$H23,Listes!$I$7)+COUNTIF($E23:$H23,Listes!$I$9)+COUNTIF($E23:$H23,Listes!$I$12))*$G$10)/4))+IF(OR(ISTEXT($F23),ISTEXT($E23)),"0",($F23-$E23)*24)+IF(OR(ISTEXT($H23),ISTEXT($G23)),"0",($H23-$G23)*24)) ->  | J23: =_xlfn.IFS(OR(I23="",I23="Compléter G9"),"0,00",I23>=$G$10,I23-$G$10,I23<$G$10,"") -> 0,00
C24: =_xlfn.IFS($C23="","",$C23<$D$9,$C23+1,$C23=$D$9,"") ->  | I24: =IF($G$10="","",IF(OR(ISTEXT($G24),ISTEXT($H24),ISTEXT($E24),ISTEXT($F24)),(((COUNTIF($E24:$H24,Listes!$I$7)+COUNTIF($E24:$H24,Listes!$I$9)+COUNTIF($E24:$H24,Listes!$I$12))*$G$10)/4))+IF(OR(ISTEXT($F24),ISTEXT($E24)),"0",($F24-$E24)*24)+IF(OR(ISTEXT($H24),ISTEXT($G24)),"0",($H24-$G24)*24)) ->  | J24: =_xlfn.IFS(OR(I24="",I24="Compléter G9"),"0,00",I24>=$G$10,I24-$G$10,I24<$G$10,"") -> 0,00
C25: =_xlfn.IFS($C24="","",$C24<$D$9,$C24+1,$C24=$D$9,"") ->  | I25: =IF($G$10="","",IF(OR(ISTEXT($G25),ISTEXT($H25),ISTEXT($E25),ISTEXT($F25)),(((COUNTIF($E25:$H25,Listes!$I$7)+COUNTIF($E25:$H25,Listes!$I$9)+COUNTIF($E25:$H25,Listes!$I$12))*$G$10)/4))+IF(OR(ISTEXT($F25),ISTEXT($E25)),"0",($F25-$E25)*24)+IF(OR(ISTEXT($H25),ISTEXT($G25)),"0",($H25-$G25)*24)) ->  | J25: =_xlfn.IFS(OR(I25="",I25="Compléter G9"),"0,00",I25>=$G$10,I25-$G$10,I25<$G$10,"") -> 0,00
C26: =_xlfn.IFS($C25="","",$C25<$D$9,$C25+1,$C25=$D$9,"") ->  | I26: =IF($G$10="","",IF(OR(ISTEXT($G26),ISTEXT($H26),ISTEXT($E26),ISTEXT($F26)),(((COUNTIF($E26:$H26,Listes!$I$7)+COUNTIF($E26:$H26,Listes!$I$9)+COUNTIF($E26:$H26,Listes!$I$12))*$G$10)/4))+IF(OR(ISTEXT($F26),ISTEXT($E26)),"0",($F26-$E26)*24)+IF(OR(ISTEXT($H26),ISTEXT($G26)),"0",($H26-$G26)*24)) ->  | J26: =_xlfn.IFS(OR(I26="",I26="Compléter G9"),"0,00",I26>=$G$10,I26-$G$10,I26<$G$10,"") -> 0,00
C27: =_xlfn.IFS($C26="","",$C26<$D$9,$C26+1,$C26=$D$9,"") ->  | I27: =IF($G$10="","",IF(OR(ISTEXT($G27),ISTEXT($H27),ISTEXT($E27),ISTEXT($F27)),(((COUNTIF($E27:$H27,Listes!$I$7)+COUNTIF($E27:$H27,Listes!$I$9)+COUNTIF($E27:$H27,Listes!$I$12))*$G$10)/4))+IF(OR(ISTEXT($F27),ISTEXT($E27)),"0",($F27-$E27)*24)+IF(OR(ISTEXT($H27),ISTEXT($G27)),"0",($H27-$G27)*24)) ->  | J27: =_xlfn.IFS(OR(I27="",I27="Compléter G9"),"0,00",I27>=$G$10,I27-$G$10,I27<$G$10,"") -> 0,00
C28: =_xlfn.IFS($C27="","",$C27<$D$9,$C27+1,$C27=$D$9,"") ->  | I28: =IF($G$10="","",IF(OR(ISTEXT($G28),ISTEXT($H28),ISTEXT($E28),ISTEXT($F28)),(((COUNTIF($E28:$H28,Listes!$I$7)+COUNTIF($E28:$H28,Listes!$I$9)+COUNTIF($E28:$H28,Listes!$I$12))*$G$10)/4))+IF(OR(ISTEXT($F28),ISTEXT($E28)),"0",($F28-$E28)*24)+IF(OR(ISTEXT($H28),ISTEXT($G28)),"0",($H28-$G28)*24)) ->  | J28: =_xlfn.IFS(OR(I28="",I28="Compléter G9"),"0,00",I28>=$G$10,I28-$G$10,I28<$G$10,"") -> 0,00
C29: =_xlfn.IFS($C28="","",$C28<$D$9,$C28+1,$C28=$D$9,"") ->  | I29: =IF($G$10="","",IF(OR(ISTEXT($G29),ISTEXT($H29),ISTEXT($E29),ISTEXT($F29)),(((COUNTIF($E29:$H29,Listes!$I$7)+COUNTIF($E29:$H29,Listes!$I$9)+COUNTIF($E29:$H29,Listes!$I$12))*$G$10)/4))+IF(OR(ISTEXT($F29),ISTEXT($E29)),"0",($F29-$E29)*24)+IF(OR(ISTEXT($H29),ISTEXT($G29)),"0",($H29-$G29)*24)) ->  | J29: =_xlfn.IFS(OR(I29="",I29="Compléter G9"),"0,00",I29>=$G$10,I29-$G$10,I29<$G$10,"") -> 0,00
C30: =_xlfn.IFS($C29="","",$C29<$D$9,$C29+1,$C29=$D$9,"") ->  | I30: =IF($G$10="","",IF(OR(ISTEXT($G30),ISTEXT($H30),ISTEXT($E30),ISTEXT($F30)),(((COUNTIF($E30:$H30,Listes!$I$7)+COUNTIF($E30:$H30,Listes!$I$9)+COUNTIF($E30:$H30,Listes!$I$12))*$G$10)/4))+IF(OR(ISTEXT($F30),ISTEXT($E30)),"0",($F30-$E30)*24)+IF(OR(ISTEXT($H30),ISTEXT($G30)),"0",($H30-$G30)*24)) ->  | J30: =_xlfn.IFS(OR(I30="",I30="Compléter G9"),"0,00",I30>=$G$10,I30-$G$10,I30<$G$10,"") -> 0,00
C31: =_xlfn.IFS($C30="","",$C30<$D$9,$C30+1,$C30=$D$9,"") ->  | I31: =IF($G$10="","",IF(OR(ISTEXT($G31),ISTEXT($H31),ISTEXT($E31),ISTEXT($F31)),(((COUNTIF($E31:$H31,Listes!$I$7)+COUNTIF($E31:$H31,Listes!$I$9)+COUNTIF($E31:$H31,Listes!$I$12))*$G$10)/4))+IF(OR(ISTEXT($F31),ISTEXT($E31)),"0",($F31-$E31)*24)+IF(OR(ISTEXT($H31),ISTEXT($G31)),"0",($H31-$G31)*24)) ->  | J31: =_xlfn.IFS(OR(I31="",I31="Compléter G9"),"0,00",I31>=$G$10,I31-$G$10,I31<$G$10,"") -> 0,00
C32: =_xlfn.IFS($C31="","",$C31<$D$9,$C31+1,$C31=$D$9,"") ->  | I32: =IF($G$10="","",IF(OR(ISTEXT($G32),ISTEXT($H32),ISTEXT($E32),ISTEXT($F32)),(((COUNTIF($E32:$H32,Listes!$I$7)+COUNTIF($E32:$H32,Listes!$I$9)+COUNTIF($E32:$H32,Listes!$I$12))*$G$10)/4))+IF(OR(ISTEXT($F32),ISTEXT($E32)),"0",($F32-$E32)*24)+IF(OR(ISTEXT($H32),ISTEXT($G32)),"0",($H32-$G32)*24)) ->  | J32: =_xlfn.IFS(OR(I32="",I32="Compléter G9"),"0,00",I32>=$G$10,I32-$G$10,I32<$G$10,"") -> 0,00
C33: =_xlfn.IFS($C32="","",$C32<$D$9,$C32+1,$C32=$D$9,"") ->  | I33: =IF($G$10="","",IF(OR(ISTEXT($G33),ISTEXT($H33),ISTEXT($E33),ISTEXT($F33)),(((COUNTIF($E33:$H33,Listes!$I$7)+COUNTIF($E33:$H33,Listes!$I$9)+COUNTIF($E33:$H33,Listes!$I$12))*$G$10)/4))+IF(OR(ISTEXT($F33),ISTEXT($E33)),"0",($F33-$E33)*24)+IF(OR(ISTEXT($H33),ISTEXT($G33)),"0",($H33-$G33)*24)) ->  | J33: =_xlfn.IFS(OR(I33="",I33="Compléter G9"),"0,00",I33>=$G$10,I33-$G$10,I33<$G$10,"") -> 0,00
C34: =_xlfn.IFS($C33="","",$C33<$D$9,$C33+1,$C33=$D$9,"") ->  | I34: =IF($G$10="","",IF(OR(ISTEXT($G34),ISTEXT($H34),ISTEXT($E34),ISTEXT($F34)),(((COUNTIF($E34:$H34,Listes!$I$7)+COUNTIF($E34:$H34,Listes!$I$9)+COUNTIF($E34:$H34,Listes!$I$12))*$G$10)/4))+IF(OR(ISTEXT($F34),ISTEXT($E34)),"0",($F34-$E34)*24)+IF(OR(ISTEXT($H34),ISTEXT($G34)),"0",($H34-$G34)*24)) ->  | J34: =_xlfn.IFS(OR(I34="",I34="Compléter G9"),"0,00",I34>=$G$10,I34-$G$10,I34<$G$10,"") -> 0,00
C35: =_xlfn.IFS($C34="","",$C34<$D$9,$C34+1,$C34=$D$9,"") ->  | I35: =IF($G$10="","",IF(OR(ISTEXT($G35),ISTEXT($H35),ISTEXT($E35),ISTEXT($F35)),(((COUNTIF($E35:$H35,Listes!$I$7)+COUNTIF($E35:$H35,Listes!$I$9)+COUNTIF($E35:$H35,Listes!$I$12))*$G$10)/4))+IF(OR(ISTEXT($F35),ISTEXT($E35)),"0",($F35-$E35)*24)+IF(OR(ISTEXT($H35),ISTEXT($G35)),"0",($H35-$G35)*24)) ->  | J35: =_xlfn.IFS(OR(I35="",I35="Compléter G9"),"0,00",I35>=$G$10,I35-$G$10,I35<$G$10,"") -> 0,00
C36: =_xlfn.IFS($C35="","",$C35<$D$9,$C35+1,$C35=$D$9,"") ->  | I36: =IF($G$10="","",IF(OR(ISTEXT($G36),ISTEXT($H36),ISTEXT($E36),ISTEXT($F36)),(((COUNTIF($E36:$H36,Listes!$I$7)+COUNTIF($E36:$H36,Listes!$I$9)+COUNTIF($E36:$H36,Listes!$I$12))*$G$10)/4))+IF(OR(ISTEXT($F36),ISTEXT($E36)),"0",($F36-$E36)*24)+IF(OR(ISTEXT($H36),ISTEXT($G36)),"0",($H36-$G36)*24)) ->  | J36: =_xlfn.IFS(OR(I36="",I36="Compléter G9"),"0,00",I36>=$G$10,I36-$G$10,I36<$G$10,"") -> 0,00
C37: =_xlfn.IFS($C36="","",$C36<$D$9,$C36+1,$C36=$D$9,"") ->  | I37: =IF($G$10="","",IF(OR(ISTEXT($G37),ISTEXT($H37),ISTEXT($E37),ISTEXT($F37)),(((COUNTIF($E37:$H37,Listes!$I$7)+COUNTIF($E37:$H37,Listes!$I$9)+COUNTIF($E37:$H37,Listes!$I$12))*$G$10)/4))+IF(OR(ISTEXT($F37),ISTEXT($E37)),"0",($F37-$E37)*24)+IF(OR(ISTEXT($H37),ISTEXT($G37)),"0",($H37-$G37)*24)) ->  | J37: =_xlfn.IFS(OR(I37="",I37="Compléter G9"),"0,00",I37>=$G$10,I37-$G$10,I37<$G$10,"") -> 0,00
C38: =_xlfn.IFS($C37="","",$C37<$D$9,$C37+1,$C37=$D$9,"") ->  | I38: =IF($G$10="","",IF(OR(ISTEXT($G38),ISTEXT($H38),ISTEXT($E38),ISTEXT($F38)),(((COUNTIF($E38:$H38,Listes!$I$7)+COUNTIF($E38:$H38,Listes!$I$9)+COUNTIF($E38:$H38,Listes!$I$12))*$G$10)/4))+IF(OR(ISTEXT($F38),ISTEXT($E38)),"0",($F38-$E38)*24)+IF(OR(ISTEXT($H38),ISTEXT($G38)),"0",($H38-$G38)*24)) ->  | J38: =_xlfn.IFS(OR(I38="",I38="Compléter G9"),"0,00",I38>=$G$10,I38-$G$10,I38<$G$10,"") -> 0,00
C39: =_xlfn.IFS($C38="","",$C38<$D$9,$C38+1,$C38=$D$9,"") ->  | I39: =IF($G$10="","",IF(OR(ISTEXT($G39),ISTEXT($H39),ISTEXT($E39),ISTEXT($F39)),(((COUNTIF($E39:$H39,Listes!$I$7)+COUNTIF($E39:$H39,Listes!$I$9)+COUNTIF($E39:$H39,Listes!$I$12))*$G$10)/4))+IF(OR(ISTEXT($F39),ISTEXT($E39)),"0",($F39-$E39)*24)+IF(OR(ISTEXT($H39),ISTEXT($G39)),"0",($H39-$G39)*24)) ->  | J39: =_xlfn.IFS(OR(I39="",I39="Compléter G9"),"0,00",I39>=$G$10,I39-$G$10,I39<$G$10,"") -> 0,00
C40: =_xlfn.IFS($C39="","",$C39<$D$9,$C39+1,$C39=$D$9,"") ->  | I40: =IF($G$10="","",IF(OR(ISTEXT($G40),ISTEXT($H40),ISTEXT($E40),ISTEXT($F40)),(((COUNTIF($E40:$H40,Listes!$I$7)+COUNTIF($E40:$H40,Listes!$I$9)+COUNTIF($E40:$H40,Listes!$I$12))*$G$10)/4))+IF(OR(ISTEXT($F40),ISTEXT($E40)),"0",($F40-$E40)*24)+IF(OR(ISTEXT($H40),ISTEXT($G40)),"0",($H40-$G40)*24)) ->  | J40: =_xlfn.IFS(OR(I40="",I40="Compléter G9"),"0,00",I40>=$G$10,I40-$G$10,I40<$G$10,"") -> 0,00
C41: =_xlfn.IFS($C40="","",$C40<$D$9,$C40+1,$C40=$D$9,"") ->  | I41: =IF($G$10="","",IF(OR(ISTEXT($G41),ISTEXT($H41),ISTEXT($E41),ISTEXT($F41)),(((COUNTIF($E41:$H41,Listes!$I$7)+COUNTIF($E41:$H41,Listes!$I$9)+COUNTIF($E41:$H41,Listes!$I$12))*$G$10)/4))+IF(OR(ISTEXT($F41),ISTEXT($E41)),"0",($F41-$E41)*24)+IF(OR(ISTEXT($H41),ISTEXT($G41)),"0",($H41-$G41)*24)) ->  | J41: =_xlfn.IFS(OR(I41="",I41="Compléter G9"),"0,00",I41>=$G$10,I41-$G$10,I41<$G$10,"") -> 0,00
C42: =_xlfn.IFS($C41="","",$C41<$D$9,$C41+1,$C41=$D$9,"") ->  | I42: =IF($G$10="","",IF(OR(ISTEXT($G42),ISTEXT($H42),ISTEXT($E42),ISTEXT($F42)),(((COUNTIF($E42:$H42,Listes!$I$7)+COUNTIF($E42:$H42,Listes!$I$9)+COUNTIF($E42:$H42,Listes!$I$12))*$G$10)/4))+IF(OR(ISTEXT($F42),ISTEXT($E42)),"0",($F42-$E42)*24)+IF(OR(ISTEXT($H42),ISTEXT($G42)),"0",($H42-$G42)*24)) ->  | J42: =_xlfn.IFS(OR(I42="",I42="Compléter G9"),"0,00",I42>=$G$10,I42-$G$10,I42<$G$10,"") -> 0,00
C43: =_xlfn.IFS($C42="","",$C42<$D$9,$C42+1,$C42=$D$9,"") ->  | I43: =IF($G$10="","",IF(OR(ISTEXT($G43),ISTEXT($H43),ISTEXT($E43),ISTEXT($F43)),(((COUNTIF($E43:$H43,Listes!$I$7)+COUNTIF($E43:$H43,Listes!$I$9)+COUNTIF($E43:$H43,Listes!$I$12))*$G$10)/4))+IF(OR(ISTEXT($F43),ISTEXT($E43)),"0",($F43-$E43)*24)+IF(OR(ISTEXT($H43),ISTEXT($G43)),"0",($H43-$G43)*24)) ->  | J43: =_xlfn.IFS(OR(I43="",I43="Compléter G9"),"0,00",I43>=$G$10,I43-$G$10,I43<$G$10,"") -> 0,00
C44: =_xlfn.IFS($C43="","",$C43<$D$9,$C43+1,$C43=$D$9,"") ->  | I44: =IF($G$10="","",IF(OR(ISTEXT($G44),ISTEXT($H44),ISTEXT($E44),ISTEXT($F44)),(((COUNTIF($E44:$H44,Listes!$I$7)+COUNTIF($E44:$H44,Listes!$I$9)+COUNTIF($E44:$H44,Listes!$I$12))*$G$10)/4))+IF(OR(ISTEXT($F44),ISTEXT($E44)),"0",($F44-$E44)*24)+IF(OR(ISTEXT($H44),ISTEXT($G44)),"0",($H44-$G44)*24)) ->  | J44: =_xlfn.IFS(OR(I44="",I44="Compléter G9"),"0,00",I44>=$G$10,I44-$G$10,I44<$G$10,"") -> 0,00
C45: =_xlfn.IFS($C44="","",$C44<$D$9,$C44+1,$C44=$D$9,"") ->  | I45: =IF($G$10="","",IF(OR(ISTEXT($G45),ISTEXT($H45),ISTEXT($E45),ISTEXT($F45)),(((COUNTIF($E45:$H45,Listes!$I$7)+COUNTIF($E45:$H45,Listes!$I$9)+COUNTIF($E45:$H45,Listes!$I$12))*$G$10)/4))+IF(OR(ISTEXT($F45),ISTEXT($E45)),"0",($F45-$E45)*24)+IF(OR(ISTEXT($H45),ISTEXT($G45)),"0",($H45-$G45)*24)) ->  | J45: =_xlfn.IFS(OR(I45="",I45="Compléter G9"),"0,00",I45>=$G$10,I45-$G$10,I45<$G$10,"") -> 0,00
C46: =_xlfn.IFS($C45="","",$C45<$D$9,$C45+1,$C45=$D$9,"") ->  | I46: =IF($G$10="","",IF(OR(ISTEXT($G46),ISTEXT($H46),ISTEXT($E46),ISTEXT($F46)),(((COUNTIF($E46:$H46,Listes!$I$7)+COUNTIF($E46:$H46,Listes!$I$9)+COUNTIF($E46:$H46,Listes!$I$12))*$G$10)/4))+IF(OR(ISTEXT($F46),ISTEXT($E46)),"0",($F46-$E46)*24)+IF(OR(ISTEXT($H46),ISTEXT($G46)),"0",($H46-$G46)*24)) ->  | J46: =_xlfn.IFS(OR(I46="",I46="Compléter G9"),"0,00",I46>=$G$10,I46-$G$10,I46<$G$10,"") -> 0,00
C47: =_xlfn.IFS(C46="","",C46<$D$9,C46+1,C46=$D$9,"") ->  | G47: Pour ce mois: | H47: Total heures effectuées | I47: =SUM(I16:I46) -> 0
H48: Heures dues par mois | I48: =$G$9 -> Compléter heures dues / semaine et Année | J48: Reste à effectuer
H49: Différence d'heures | I49: =IF(OR($I$47="",$I$48="",$I$48="Compléter heures dues / semaine et Année"),"",$I$48-$I$47) ->  | J49: =IF(OR($I$47=0,$I$47="",$I$49=""),"",$I$49/$I$47) -> 
G51: Solde d'heures: | H51: Dues par l'employé | I51: =_xlfn.IFS(OR($I$47="",$I$48="",$I$48="Compléter heures dues / semaine et Année"),"",$I$47<=$I$48,$I$48-$I$47,$I$47>=$I$48,"0") -> 
H52: Dues par l'entreprise | I52: =_xlfn.IFS(OR($I$47="",$I$48=""),"",$I$47>$I$48,$I$47-$I$48,$I$47<$I$48,0,$I$47=$I$48,0) -> 0

Sheet Synthèse annuelle heures
C1: Récapitulatif des heures de travail
A5: Année | B5: Mois | C5: Entreprise | D5: Employé | E5: Total heures effectuées par employé | F5: Heures dues par mois | G5: Heures dues par employé | H5: Heure dues par entreprise | I5: Reste à effectuer

Sheet Listes (hidden)
D1: Listes
B6: Années | D6: Mois | F6: Jours fériés | I6: heure matin | J6: heure après-midi
B7: 2022 | D7: Janvier | F7: Jour de l'an | G7: =DATE('Calcul heures travail'!$B$7,1,1) -> 1900-01-01 | I7: ABSENCE AUTORISEE | J7: ABSENCE AUTORISEE
B8: =B7+1 -> 2023 | D8: Février | F8: Lundi de Pâques | G8: =IF('Calcul heures travail'!B7="","Entrer année",(FLOOR(DAY(MINUTE('Calcul heures travail'!$B$7/38)/2+56)&"/5/"&'Calcul heures travail'!$B$7,7)-34)+1) -> Entrer année | I8: ABSENCE NON AUTORISEE | J8: ABSENCE NON AUTORISEE
B9: =B8+1 -> 2024 | D9: Mars | F9: Fête du travail | G9: =DATE('Calcul heures travail'!$B$7,5,1) -> 1900-05-01 | I9: CONGE PAYE | J9: CONGE PAYE
B10: 2025 | D10: Avril | F10: Victoire de 1945 | G10: =DATE('Calcul heures travail'!$B$7,5,8) -> 1900-05-08 | I10: MALADIE | J10: MALADIE
B11: 2026 | D11: Mai | F11: Ascension | G11: =IF($G$8="Entrer année","Entrer année",(FLOOR(DAY(MINUTE('Calcul heures travail'!$B$7/38)/2+56)&"/5/"&'Calcul heures travail'!$B$7,7)-34)+39) -> Entrer année | I11: SANS SOLDE | J11: SANS SOLDE
B12: 2027 | D12: Juin | F12: Lundi de Pentecôte | G12: =IF($G$8="Entrer année","Entrer année",(FLOOR(DAY(MINUTE('Calcul heures travail'!$B$7/38)/2+56)&"/5/"&'Calcul heures travail'!$B$7,7)-34)+50) -> Entrer année | I12: RTT | J12: RTT
B13: 2028 | D13: Juillet | F13: Fête nationale | G13: =DATE('Calcul heures travail'!$B$7,7,14) -> 1900-07-14 | I13: 0 | J13: 0.5
B14: 2029 | D14: Août | F14: Assomption | G14: =DATE('Calcul heures travail'!$B$7,8,15) -> 1900-08-15 | I14: =I13+1/1440 -> 0.0006944444444 | J14: =J13+1/1440 -> 0.5006944444
B15: 2030 | D15: Septembre | F15: Toussaint | G15: =DATE('Calcul heures travail'!$B$7,11,1) -> 1900-11-01 | I15: =I14+1/1440 -> 0.001388888889 | J15: 0.5013888889
B16: 2031 | D16: Octobre | F16: Armistice | G16: =DATE('Calcul heures travail'!$B$7,11,11) -> 1900-11-11 | I16: =I15+1/1440 -> 0.002083333333 | J16: 0.5020833333
B17: 2032 | D17: Novembre | F17: Nöel | G17: =DATE('Calcul heures travail'!$B$7,12,25) -> 1900-12-25 | I17: 0.002777777778 | J17: 0.5027777778
B18: 2033 | D18: Décembre | I18: 0.003472222222 | J18: 0.5034722222
B19: 2034 | I19: 0.004166666667 | J19: 0.5041666667
B20: 2035 | I20: 0.004861111111 | J20: 0.5048611111
B21: 2036 | I21: 0.005555555556 | J21: 0.5055555556
B22: 2037 | I22: 0.00625 | J22: 0.50625
B23: 2038 | I23: 0.006944444444 | J23: 0.5069444444
B24: 2039 | I24: 0.007638888889 | J24: 0.5076388889
B25: 2040 | I25: 0.008333333333 | J25: 0.5083333333
B26: 2041 | I26: 0.009027777778 | J26: 0.5090277778
B27: 2042 | I27: 0.009722222222 | J27: 0.5097222222
B28: 2043 | I28: 0.01041666667 | J28: 0.5104166667
B29: =B28+1 -> 2044 | I29: 0.01111111111 | J29: 0.5111111111
B30: 2045 | I30: 0.01180555556 | J30: 0.5118055556
B31: 2046 | I31: 0.0125 | J31: 0.5125
B32: 2047 | I32: 0.01319444444 | J32: 0.5131944444
B33: 2048 | I33: 0.01388888889 | J33: 0.5138888889
B34: 2049 | I34: 0.01458333333 | J34: 0.5145833333
B35: 2050 | I35: 0.01527777778 | J35: 0.5152777778
B36: 2051 | I36: 0.01597222222 | J36: 0.5159722222
B37: 2052 | I37: 0.01666666667 | J37: 0.5166666667
B38: =B37+1 -> 2053 | I38: 0.01736111111 | J38: 0.5173611111
B39: 2054 | I39: 0.01805555556 | J39: 0.5180555556
B40: 2055 | I40: 0.01875 | J40: 0.51875
B41: =B40+1 -> 2056 | I41: 0.01944444444 | J41: 0.5194444444
B42: =B41+1 -> 2057 | I42: 0.02013888889 | J42: 0.5201388889
B43: =B42+1 -> 2058 | I43: 0.02083333333 | J43: 0.5208333333
B44: =B43+1 -> 2059 | I44: 0.02152777778 | J44: 0.5215277778
B45: =B44+1 -> 2060 | I45: 0.02222222222 | J45: 0.5222222222
B46: =B45+1 -> 2061 | I46: 0.02291666667 | J46: 0.5229166667
B47: 2062 | I47: 0.02361111111 | J47: 0.5236111111
B48: 2063 | I48: 0.02430555556 | J48: 0.5243055556
B49: 2064 | I49: 0.025 | J49: 0.525
B50: 2065 | I50: 0.02569444444 | J50: 0.5256944444
B51: 2066 | I51: 0.02638888889 | J51: 0.5263888889
B52: 2067 | I52: 0.02708333333 | J52: 0.5270833333
B53: 2068 | I53: 0.02777777778 | J53: 0.5277777778
B54: 2069 | I54: 0.02847222222 | J54: 0.5284722222
B55: 2070 | I55: 0.02916666667 | J55: 0.5291666667
B56: 2071 | I56: 0.02986111111 | J56: 0.5298611111
B57: 2072 | I57: 0.03055555556 | J57: 0.5305555556
B58: 2073 | I58: 0.03125 | J58: 0.53125
B59: 2074 | I59: 0.03194444444 | J59: 0.5319444444
B60: 2075 | I60: 0.03263888889 | J60: 0.5326388889
B61: 2076 | I61: 0.03333333333 | J61: 0.5333333333
B62: 2077 | I62: 0.03402777778 | J62: 0.5340277778
B63: 2078 | I63: 0.03472222222 | J63: 0.5347222222
B64: 2079 | I64: 0.03541666667 | J64: 0.5354166667
B65: 2080 | I65: 0.03611111111 | J65: 0.5361111111
B66: 2081 | I66: 0.03680555556 | J66: 0.5368055556
B67: 2082 | I67: 0.0375 | J67: 0.5375
B68: =B67+1 -> 2083 | I68: 0.03819444444 | J68: 0.5381944444
B69: 2084 | I69: 0.03888888889 | J69: 0.5388888889
B70: 2085 | I70: 0.03958333333 | J70: 0.5395833333
B71: 2086 | I71: 0.04027777778 | J71: 0.5402777778
B72: 2087 | I72: 0.04097222222 | J72: 0.5409722222
B73: 2088 | I73: 0.04166666667 | J73: 0.5416666667
B74: 2089 | I74: 0.04236111111 | J74: 0.5423611111
B75: 2090 | I75: 0.04305555556 | J75: 0.5430555556
B76: 2091 | I76: 0.04375 | J76: 0.54375
B77: 2092 | I77: 0.04444444444 | J77: 0.5444444444
B78: 2093 | I78: 0.04513888889 | J78: 0.5451388889
B79: =B78+1 -> 2094 | I79: 0.04583333333 | J79: 0.5458333333
B80: 2095 | I80: =I79+1/1440 -> 0.04652777778 | J80: 0.5465277778
B81: 2096 | I81: 0.04722222222 | J81: 0.5472222222
B82: 2097 | I82: 0.04791666667 | J82: 0.5479166667
B83: 2098 | I83: 0.04861111111 | J83: 0.5486111111
B84: 2099 | I84: 0.04930555556 | J84: 0.5493055556
B85: 2100 | I85: 0.05 | J85: 0.55
I86: 0.05069444444 | J86: 0.5506944444
I87: 0.05138888889 | J87: 0.5513888889
I88: 0.05208333333 | J88: 0.5520833333
I89: 0.05277777778 | J89: 0.5527777778
I90: 0.05347222222 | J90: 0.5534722222
I91: 0.05416666667 | J91: 0.5541666667
I92: 0.05486111111 | J92: 0.5548611111
I93: 0.05555555556 | J93: 0.5555555556
I94: 0.05625 | J94: 0.55625
I95: 0.05694444444 | J95: 0.5569444444
I96: 0.05763888889 | J96: 0.5576388889
I97: 0.05833333333 | J97: 0.5583333333
I98: 0.05902777778 | J98: 0.5590277778
I99: 0.05972222222 | J99: 0.5597222222
I100: 0.06041666667 | J100: 0.5604166667
I101: 0.06111111111 | J101: 0.5611111111
I102: 0.06180555556 | J102: 0.5618055556
I103: 0.0625 | J103: 0.5625
I104: 0.06319444444 | J104: 0.5631944444
I105: 0.06388888889 | J105: 0.5638888889
I106: 0.06458333333 | J106: 0.5645833333
I107: 0.06527777778 | J107: 0.5652777778
I108: 0.06597222222 | J108: 0.5659722222
I109: 0.06666666667 | J109: 0.5666666667
I110: 0.06736111111 | J110: 0.5673611111
I111: 0.06805555556 | J111: 0.5680555556
I112: 0.06875 | J112: 0.56875
I113: 0.06944444444 | J113: 0.5694444444
I114: 0.07013888889 | J114: 0.5701388889
I115: 0.07083333333 | J115: 0.5708333333
I116: 0.07152777778 | J116: 0.5715277778
I117: 0.07222222222 | J117: 0.5722222222
I118: 0.07291666667 | J118: 0.5729166667
I119: 0.07361111111 | J119: 0.5736111111
I120: 0.07430555556 | J120: 0.5743055556
I121: 0.075 | J121: 0.575
I122: 0.07569444444 | J122: 0.5756944444
I123: 0.07638888889 | J123: 0.5763888889
I124: 0.07708333333 | J124: 0.5770833333
I125: 0.07777777778 | J125: 0.5777777778
I126: 0.07847222222 | J126: 0.5784722222
I127: 0.07916666667 | J127: 0.5791666667
I128: 0.07986111111 | J128: 0.5798611111
I129: 0.08055555556 | J129: 0.5805555556
I130: 0.08125 | J130: 0.58125
I131: 0.08194444444 | J131: 0.5819444444
I132: 0.08263888889 | J132: 0.5826388889
I133: 0.08333333333 | J133: 0.5833333333
I134: 0.08402777778 | J134: 0.5840277778
I135: 0.08472222222 | J135: 0.5847222222
I136: 0.08541666667 | J136: 0.5854166667
I137: 0.08611111111 | J137: 0.5861111111
I138: 0.08680555556 | J138: 0.5868055556
I139: 0.0875 | J139: 0.5875
I140: 0.08819444444 | J140: 0.5881944444
I141: 0.08888888889 | J141: 0.5888888889
I142: 0.08958333333 | J142: 0.5895833333
I143: 0.09027777778 | J143: 0.5902777778
I144: =I143+1/1440 -> 0.09097222222 | J144: 0.5909722222
I145: 0.09166666667 | J145: 0.5916666667
I146: 0.09236111111 | J146: 0.5923611111
I147: 0.09305555556 | J147: 0.5930555556
I148: 0.09375 | J148: 0.59375
I149: 0.09444444444 | J149: 0.5944444444
I150: 0.09513888889 | J150: 0.5951388889
I151: 0.09583333333 | J151: 0.5958333333
I152: 0.09652777778 | J152: 0.5965277778
I153: 0.09722222222 | J153: 0.5972222222
I154: 0.09791666667 | J154: 0.5979166667
I155: 0.09861111111 | J155: 0.5986111111
I156: 0.09930555556 | J156: 0.5993055556
I157: 0.1 | J157: 0.6
I158: 0.1006944444 | J158: 0.6006944444
I159: 0.1013888889 | J159: 0.6013888889
I160: 0.1020833333 | J160: 0.6020833333
I161: 0.1027777778 | J161: 0.6027777778
I162: 0.1034722222 | J162: 0.6034722222
I163: 0.1041666667 | J163: 0.6041666667
I164: 0.1048611111 | J164: 0.6048611111
I165: 0.1055555556 | J165: 0.6055555556
I166: 0.10625 | J166: 0.60625
I167: 0.1069444444 | J167: 0.6069444444
I168: 0.1076388889 | J168: 0.6076388889
I169: 0.1083333333 | J169: 0.6083333333
I170: 0.1090277778 | J170: 0.6090277778
I171: 0.1097222222 | J171: 0.6097222222
I172: 0.1104166667 | J172: 0.6104166667
I173: 0.1111111111 | J173: 0.6111111111
I174: 0.1118055556 | J174: 0.6118055556
I175: 0.1125 | J175: 0.6125
I176: 0.1131944444 | J176: 0.6131944444
I177: 0.1138888889 | J177: 0.6138888889
I178: 0.1145833333 | J178: 0.6145833333
I179: 0.1152777778 | J179: 0.6152777778
I180: 0.1159722222 | J180: 0.6159722222
I181: 0.1166666667 | J181: 0.6166666667
I182: 0.1173611111 | J182: 0.6173611111
I183: 0.1180555556 | J183: 0.6180555556
I184: 0.11875 | J184: 0.61875
I185: 0.1194444444 | J185: 0.6194444444
I186: 0.1201388889 | J186: 0.6201388889
I187: 0.1208333333 | J187: 0.6208333333
I188: 0.1215277778 | J188: 0.6215277778
I189: 0.1222222222 | J189: 0.6222222222
I190: 0.1229166667 | J190: 0.6229166667
I191: 0.1236111111 | J191: 0.6236111111
I192: 0.1243055556 | J192: 0.6243055556
I193: 0.125 | J193: 0.625
I194: 0.1256944444 | J194: 0.6256944444
I195: 0.1263888889 | J195: 0.6263888889
I196: 0.1270833333 | J196: 0.6270833333
I197: 0.1277777778 | J197: 0.6277777778
I198: 0.1284722222 | J198: 0.6284722222
I199: 0.1291666667 | J199: 0.6291666667
I200: 0.1298611111 | J200: 0.6298611111
I201: 0.1305555556 | J201: 0.6305555556
I202: 0.13125 | J202: 0.63125
I203: 0.1319444444 | J203: 0.6319444444
I204: 0.1326388889 | J204: 0.6326388889
... 649 more rows

Sheet Instructions
C1: Calcul heures de travail - Instructions
B5: La saisie de donnée se fait dans l'onglet "Calcul heures travail"
B6: L'onglet "Synthèse annuelle heures" est une synthèse globale des heures de travail de tous les employés durant l'année
B7: Un onglet masqué "Liste" est disponible pour mettre à jour les listes déroulantes (si besoin)
C9: Etape | D9: Description
C10: 1 | D10: Renseigner le nom de l'entreprise
C11: 2 | D11: Renseigner le nom de l'employé
C12: 3 | D12: Renseigner l'année et le mois souhaité. Les numéros de semaine, les jours de la semaine, les jours fériés et week-end s'affichent automatiquement
C13: 4 | D13: Renseigner le nombre d'heures que l'employé doit effectuer par semaine (Heures dues par semaine) et le nombre de jours que l'employé doit travailler par semaine
C14: 5 | D14: Les nombres d'heures que l'employé doit effectuer par jour et par mois se calculent automatiquement
C15: 6 | D15: Compléter les heures d'arrivée et de d'épart de l'employée ou son type d'absence à l'aide de la liste déroulante
C16: 7 | D16: Lorsque vous avez terminée la saisie des données, cliquer sur le bouton "ENREGISTRER ET REINITIALISER" (en haut à droite) puis sur "Oui". La synthèse des heures est enregistrée dans l'onglet "Synthèse annuelle heures".
C17: 8 | D17: Si vous souhaitez apporter une dernière modification après avoir cliquer sur le bouton "ENREGISTRER ET REINITIALISER", cliquer sur "Non" puis sur "OK" dans la fenêtre qui apparaîtra
